bitfinex/quotes_ETHUSD_20250406
["timestamp","ask_amount","ask_price","bid_price","bid_amount"]
[1743928900123,3.91259,1789.1,1789.0,1.0324244]
[1743928902220,3.91259,1789.1,1789.0,0.4824244]
[1743928902952,3.91286,1789.0,1788.8,6.1004]
[1743928904051,3.91286,1789.0,1788.9,0.48291033]
[1743928907147,6.91259,1789.1,1789.0,0.7641]
[1743928907353,3.9128,1789.0,1788.9,1.24701033]
[1743928907548,3.9128,1789.0,1788.9,0.7641]
[1743928907857,3.9128,1789.0,1788.9,6.0771]
[1743928918964,3.9128,1789.0,1788.9,6.56026243]
[1743928919665,3.9128,1789.0,1788.9,5.79616243]
[1743928921372,4.995339,1789.0,1788.9,5.79616243]
[1743928922379,3.9128,1789.0,1788.9,5.79616243]
[1743928923774,6.91265,1789.1,1788.9,5.79616243]
[1743928924082,3.9128,1789.0,1788.9,5.79616243]
[1743928926172,6.91265,1789.1,1788.9,5.79616243]
[1743928927486,5.12780323,1789.4,1788.9,5.79616243]
[1743928927487,8.24633323,1789.4,1789.1,0.55]
[1743928927689,3.0,1789.3,1789.1,0.55]
[1743928927901,4.33424323,1789.4,1789.2,1.23899018]
[1743928928093,7.33424323,1789.4,1789.3,5.312]
[1743928928504,7.33424323,1789.4,1789.3,5.75380145]
[1743928933494,6.91194,1789.4,1789.3,5.75380145]
[1743928935753,5.10939638,1789.6,1789.3,6.4088816]
[1743928935754,3.9115,1789.6,1789.3,6.4088816]
[1743928935982,3.91178,1789.5,1789.3,6.4088816]
[1743928936184,7.82318,1789.6,1789.4,0.7912]
[1743928936484,3.9115,1789.6,1789.4,0.7912]
[1743928936651,3.0,1789.6,1789.5,0.99069254]
[1743928936852,3.91128,1789.7,1789.5,0.99069254]
[1743928937070,3.91106,1789.8,1789.5,0.99069254]
[1743928937267,3.91106,1789.8,1789.6,0.7912]
[1743928937583,3.91084,1789.9,1789.7,5.75038952]
[1743928938148,7.8214,1790.0,1789.7,5.75038952]
[1743928938370,7.82188,1789.9,1789.7,5.75038952]
[1743928939293,3.91084,1789.9,1789.7,5.75038952]
[1743928939882,7.82185,1789.9,1789.7,5.75038952]
[1743928940411,3.91105,1789.8,1789.7,6.30038952]
[1743928941368,3.91105,1789.8,1789.7,7.00954847]
[1743928945694,8.22704638,1789.8,1789.7,5.74838952]
[1743928949099,11.22704638,1789.8,1789.7,0.43938952]
[1743928949307,11.22704638,1789.8,1789.7,5.309]
[1743928949489,11.22704638,1789.8,1789.7,5.74642169]
[1743928949891,12.00584638,1789.8,1789.7,0.43742169]
[1743928950104,3.9117,1789.5,1789.4,5.309]
[1743928950305,8.22769638,1789.5,1789.4,5.67616207]
[1743928950772,12.00649638,1789.5,1789.4,5.67616207]
[1743928950974,12.00649638,1789.5,1789.4,0.36716207]
[1743928951301,3.91192,1789.4,1789.3,5.309]
[1743928951679,3.91192,1789.4,1789.3,5.67737052]
[1743928954221,3.91192,1789.4,1789.3,6.22737052]
[1743928954435,3.91192,1789.4,1789.3,6.87010757]
[1743928958034,0.7788,1789.9,1789.4,1.3]
[1743928958333,3.91115,1789.8,1789.7,0.75]
[1743928958488,3.91115,1789.8,1789.7,5.67644369]
[1743928959117,6.91115,1789.8,1789.7,5.67644369]
[1743928959318,8.772169,1789.8,1789.7,5.67644369]
[1743928960233,9.19515221,1789.8,1789.7,5.67644369]
[1743928960591,6.91115,1789.8,1789.7,5.67644369]
[1743928965922,3.0,1789.8,1789.7,5.67644369]
[1743928967050,7.82203,1789.9,1789.7,5.67644369]
[1743928967411,3.91105,1789.8,1789.7,5.67644369]
[1743928968542,7.82199,1789.9,1789.7,5.67644369]
[1743928969450,3.91105,1789.8,1789.7,5.67644369]
[1743928975458,8.499754,1789.8,1789.7,0.36744369]
[1743928975656,8.499754,1789.8,1789.7,5.67444369]
[1743928975863,3.9115,1789.6,1789.3,25.137]
[1743928976164,3.91171,1789.5,1789.4,5.307]
[1743928977858,3.91171,1789.5,1789.3,25.137]
[1743928978059,3.91171,1789.5,1789.4,5.307]
[1743928978938,3.91171,1789.5,1789.4,5.67601006]
[1743928980538,3.9115,1789.6,1789.4,5.67601006]
[1743928980929,3.9115,1789.6,1789.4,6.48361006]
[1743928981566,3.91128,1789.7,1789.4,6.48361006]
[1743928981865,3.91106,1789.8,1789.5,0.8076]
[1743928982230,3.91106,1789.8,1789.6,0.36837491]
[1743928984073,3.91083,1789.9,1789.6,0.36837491]
[1743928984233,7.82181,1789.9,1789.7,0.7683]
[1743928984437,7.82181,1789.9,1789.8,5.307]
[1743928984768,3.91083,1789.9,1789.8,5.67473989]
[1743928991085,4.32344904,1790.0,1789.8,5.67473989]
[1743928991086,0.41281904,1790.0,1789.8,5.67473989]
[1743928991271,0.41281904,1790.0,1789.9,0.56747399]
[1743928991453,3.91047,1790.1,1789.9,0.56747399]
[1743928991751,3.91047,1790.1,1789.9,0.93469595]
[1743928992275,4.32477143,1790.1,1789.9,0.93469595]
[1743928996881,0.41430143,1790.1,1789.9,0.93469595]
[1743928997051,3.91021,1790.2,1789.9,0.93469595]
[1743928998281,3.91047,1790.1,1789.9,0.93469595]
[1743928998485,3.91047,1790.1,1789.9,0.36722196]
[1743928998849,3.91047,1790.1,1789.8,6.0575]
[1743928999048,3.91047,1790.1,1790.0,0.36630669]
[1743928999259,3.91047,1790.1,1789.9,0.36662408]
[1743928999463,3.91047,1790.1,1790.0,0.36630669]
[1743928999798,3.91047,1790.1,1789.8,6.0575]
[1743929000094,3.91047,1790.1,1789.9,0.97237408]
[1743929001606,8.24335163,1790.1,1789.9,0.97237408]
[1743929001892,8.24335163,1790.1,1789.9,0.36662408]
[1743929002283,8.24335163,1790.1,1789.8,6.0575]
[1743929002594,8.24335163,1790.1,1789.9,0.36662408]
[1743929002772,8.24335163,1790.1,1789.8,6.0575]
[1743929003116,8.24335163,1790.1,1789.9,0.36662408]
[1743929003297,4.33280163,1790.1,1789.9,0.36662408]
[1743929003496,4.33280163,1790.1,1789.8,6.0575]
[1743929003698,4.33280163,1790.1,1790.0,0.36630669]
[1743929004196,4.33280163,1790.1,1789.8,6.0575]
[1743929004394,4.33280163,1790.1,1789.9,0.36662408]
[1743929004695,8.24338163,1790.1,1789.8,6.0575]
[1743929004910,8.24338163,1790.1,1790.0,0.36630669]
[1743929005075,8.24338163,1790.1,1789.9,0.36662408]
[1743929005275,8.24338163,1790.1,1790.0,0.36630669]
[1743929005276,9.04788163,1790.1,1790.0,0.36630669]
[1743929005777,3.91076,1790.0,1789.8,6.0575]
[1743929005980,7.82154,1790.0,1789.8,6.0575]
[1743929006660,3.91076,1790.0,1789.8,6.0575]
[1743929008802,3.91076,1790.0,1789.9,0.36662408]
[1743929008803,7.82153,1790.0,1789.9,0.36662408]
[1743929008970,7.82153,1790.0,1789.8,5.307]
[1743929009171,7.82153,1790.0,1789.9,0.36662408]
[1743929009501,3.91076,1790.0,1789.8,5.307]
[1743929009669,3.91076,1790.0,1789.9,0.36662408]
[1743929010398,3.91076,1790.0,1789.8,5.307]
[1743929010712,3.91076,1790.0,1789.9,0.36662408]
[1743929011113,3.91076,1790.0,1789.8,5.307]
[1743929011416,5.13724163,1790.1,1789.8,5.307]
[1743929011417,8.24329163,1790.1,1789.9,1.17032408]
[1743929011615,4.33274163,1790.1,1789.9,1.17032408]
[1743929013176,8.24329163,1790.1,1789.9,1.17032408]
[1743929013482,4.33274163,1790.1,1789.9,1.81805649]
[1743929013883,3.91001,1790.3,1790.1,0.8037]
[1743929014093,3.91001,1790.3,1790.2,5.305]
[1743929014281,3.91001,1790.3,1790.2,5.66965235]
[1743929014690,4.33401265,1790.3,1790.2,5.66965235]
[1743929017353,0.7606,1790.6,1790.2,6.31698759]
[1743929017625,3.90988,1790.4,1790.2,6.31698759]
[1743929017823,3.90995,1790.3,1790.2,5.66965235]
[1743929022141,4.67055,1790.3,1790.2,0.36465235]
[1743929022417,4.67055,1790.3,1790.2,5.304]
[1743929022621,4.67055,1790.3,1790.2,5.67090229]
[1743929035723,7.25933265,1790.3,1790.2,5.67090229]
[1743929036532,4.67055,1790.3,1790.2,5.67090229]
[1743929039929,8.78747127,1790.3,1790.2,0.36690229]
[1743929040233,8.78747127,1790.3,1789.8,25.128]
[1743929040234,3.91017,1790.2,1790.1,5.302]
[1743929040560,6.49895265,1790.2,1790.1,5.302]
[1743929053237,0.7988,1790.4,1790.1,5.302]
[1743929053238,3.90975,1790.4,1790.1,6.1068]
[1743929053832,3.91005,1790.3,1790.2,0.356823]
[1743929054042,3.91005,1790.3,1790.1,6.1068]
[1743929054233,10.40895265,1790.3,1790.2,0.35689151]
[1743929054427,3.91017,1790.2,1789.9,0.8048]
[1743929054728,6.49917265,1790.1,1790.0,5.65959489]
[1743929056462,6.92187661,1790.1,1790.0,5.65959489]
[1743929063139,4.33309396,1790.1,1790.0,5.65959489]
[1743929068987,6.92187661,1790.1,1790.0,0.35759489]
[1743929069305,8.79570127,1790.1,1790.0,5.301]
[1743929069488,8.79570127,1790.1,1790.0,5.65867886]
[1743929072605,4.33309396,1790.1,1790.0,5.65867886]
[1743929072816,4.33309396,1790.1,1790.0,0.35767886]
[1743929072960,5.14129396,1790.1,1790.0,0.35767886]
[1743929073159,3.91083,1789.9,1789.8,5.301]
[1743929073760,3.91105,1789.8,1789.7,25.13]
[1743929073959,3.91105,1789.8,1789.7,30.431]
[1743929078797,3.91083,1789.9,1789.7,30.431]
[1743929078986,7.82181,1789.9,1789.7,30.431]
[1743929079588,7.82181,1789.9,1789.7,31.2273]
[1743929079800,3.91105,1789.8,1789.7,31.2273]
[1743929080101,3.91105,1789.8,1789.7,0.7963]
[1743929083899,3.91105,1789.8,1789.7,1.15464383]
[1743929084104,7.28202065,1789.8,1789.7,0.35834383]
[1743929084299,3.91127,1789.7,1789.6,5.0]
[1743929090321,6.49983265,1789.8,1789.6,5.0]
[1743929090487,3.91105,1789.8,1789.6,5.0]
[1743929092823,7.82225,1789.8,1789.6,5.0]
[1743929094122,3.91105,1789.8,1789.6,5.0]
[1743929096730,3.91127,1789.7,1789.6,5.0]
[1743929096904,7.70207,1789.7,1789.6,5.0]
[1743929097304,3.9122,1789.3,1789.1,0.7678]
[1743929098535,4.33639392,1789.3,1789.1,0.7678]
[1743929098836,3.91236,1789.2,1789.1,1.3178]
[1743929099217,4.33639392,1789.3,1789.1,1.3178]
[1743929100441,0.42419392,1789.3,1789.1,1.37368756]
[1743929100608,6.50072265,1789.4,1789.1,1.37368756]
[1743929101136,6.50072265,1789.4,1789.1,1.3178]
[1743929101337,7.82408,1789.4,1789.1,1.3178]
[1743929101644,3.91194,1789.4,1789.1,1.37368721]
[1743929102408,3.91222,1789.3,1789.1,1.3178]
[1743929103037,4.3229699,1789.3,1789.1,1.3178]
[1743929104043,4.3229699,1789.3,1789.1,1.37368758]
[1743929104469,4.3229699,1789.3,1789.1,1.3178]
[1743929105243,0.4107499,1789.3,1789.1,1.3178]
[1743929105436,3.91194,1789.4,1789.1,1.37368758]
[1743929105616,7.82403,1789.4,1789.1,1.3178]
[1743929106749,3.91214,1789.3,1789.1,1.3178]
[1743929107134,0.41938403,1789.3,1789.2,0.55]
[1743929107333,3.91194,1789.4,1789.2,0.55]
[1743929108852,3.91152,1789.6,1789.3,0.7758]
[1743929109051,3.91152,1789.6,1789.4,0.55]
[1743929109251,3.91142,1789.7,1789.5,0.7758]
[1743929109559,3.91148,1789.6,1789.5,0.7758]
[1743929110824,4.32977179,1789.6,1789.5,0.7758]
[1743929112158,0.41829179,1789.6,1789.5,0.7758]
[1743929112358,6.50020265,1789.7,1789.5,0.7758]
[1743929112835,10.41162265,1789.7,1789.5,0.7758]
[1743929113623,3.91148,1789.6,1789.5,0.7758]
[1743929113856,6.50020265,1789.7,1789.5,0.7758]
[1743929114153,6.50020265,1789.7,1789.5,1.04892242]
[1743929114326,10.41163265,1789.7,1789.5,1.04892242]
[1743929115257,10.82627837,1789.7,1789.5,1.04892242]
[1743929116267,4.32606572,1789.7,1789.5,1.04892242]
[1743929117070,3.91148,1789.6,1789.5,1.04892242]
[1743929117869,3.91148,1789.6,1789.5,0.27312242]
[1743929120046,4.32606572,1789.7,1789.5,0.27312242]
[1743929120374,3.91105,1789.8,1789.6,0.7631]
[1743929120967,3.91105,1789.8,1789.7,0.27246888]
[1743929121146,6.49963265,1789.9,1789.7,0.27246888]
[1743929121343,3.91105,1789.8,1789.6,0.7631]
[1743929123163,3.91127,1789.7,1789.6,1.3131]
[1743929124578,3.91127,1789.7,1789.6,0.55]
[1743929128975,3.91127,1789.7,1789.6,0.82283638]
[1743929129878,6.50005265,1789.7,1789.6,0.27283638]
[1743929130039,7.28228465,1789.7,1789.6,0.27283638]
[1743929130243,3.91155,1789.6,1789.4,0.8311]
[1743929135384,7.8232,1789.6,1789.4,0.8311]
[1743929135550,7.8232,1789.6,1789.3,0.55]
[1743929136083,7.82374,1789.5,1789.2,0.8048]
[1743929140695,3.91195,1789.4,1789.2,0.8048]
[1743929140922,8.60223,1789.4,1789.1,0.55]
[1743929141088,4.69015,1789.4,1789.1,0.55]
[1743929141413,3.91195,1789.4,1789.1,0.55]
[1743929142184,7.82403,1789.4,1789.1,0.55]
[1743929143012,3.91215,1789.3,1789.1,0.55]
[1743929143172,3.91215,1789.3,1789.1,0.60588722]
[1743929143371,3.91215,1789.3,1789.1,0.55]
[1743929143573,3.91215,1789.3,1789.1,0.60588722]
[1743929143807,3.91215,1789.3,1789.1,0.55]
[1743929143981,7.82445,1789.3,1789.2,0.47964364]
[1743929144181,11.58264765,1789.3,1789.2,0.47964364]
[1743929144416,3.91256,1789.2,1788.8,0.8048]
[1743929144619,3.91256,1789.2,1788.8,1.09515155]
[1743929144779,7.82512,1789.2,1788.9,0.55]
[1743929145278,8.25118445,1789.2,1788.9,0.55]
[1743929145605,4.33862445,1789.2,1788.9,0.55]
[1743929145778,4.33862445,1789.2,1788.9,1.19292939]
[1743929148680,4.33862445,1789.2,1788.9,0.55]
[1743929149482,8.25116445,1789.2,1788.9,0.55]
[1743929149676,3.91258,1789.1,1788.8,1.96609389]
[1743929149879,3.91292,1789.0,1788.8,1.16129389]
[1743929150212,3.91292,1789.0,1788.8,0.87094234]
[1743929152398,3.91292,1789.0,1788.7,5.0]
[1743929152593,3.91312,1788.9,1788.7,5.0]
[1743929152820,8.2449294,1788.9,1788.7,5.0]
[1743929153690,4.3317494,1788.9,1788.7,5.0]
[1743929155023,8.2449194,1788.9,1788.7,5.0]
[1743929156825,4.3317494,1788.9,1788.7,5.0]
[1743929158894,8.2449294,1788.9,1788.7,5.0]
[1743929159095,8.2449294,1788.9,1788.8,0.45851034]
[1743929160331,9.89252234,1788.9,1788.8,0.45851034]
[1743929161230,5.1548494,1788.9,1788.8,0.45851034]
[1743929162113,5.1548494,1788.9,1788.6,0.87105406]
[1743929162425,5.1548494,1788.9,1788.7,0.45947804]
[1743929162626,3.91267,1789.1,1788.8,1.3568]
[1743929162929,3.91267,1789.1,1788.9,0.45859868]
[1743929164413,4.73548,1789.2,1788.9,0.45859868]
[1743929164414,3.91238,1789.2,1788.9,0.45859868]
[1743929164725,3.91238,1789.2,1789.0,0.7647]
[1743929164918,3.91238,1789.2,1789.1,0.45798162]
[1743929165119,4.33110553,1789.2,1789.1,0.45798162]
[1743929172131,0.41872553,1789.2,1789.1,0.45798162]
[1743929172339,3.91216,1789.3,1789.1,0.45798162]
[1743929173742,4.32221505,1789.3,1789.1,0.45798162]
[1743929177626,8.23453505,1789.3,1789.1,0.45798162]
[1743929177822,0.41005505,1789.3,1789.1,0.45798162]
[1743929178030,6.50316741,1789.4,1789.1,0.45798162]
[1743929178229,3.91172,1789.5,1789.2,0.7814]
[1743929178430,4.32402069,1789.5,1789.2,0.7814]
[1743929178630,4.32402069,1789.5,1789.3,0.45694529]
[1743929179125,3.91131,1789.7,1789.3,0.45694529]
[1743929179334,3.91131,1789.7,1789.4,0.8372845]
[1743929179545,3.91106,1789.8,1789.5,1.00573029]
[1743929181163,3.36886741,1789.9,1789.5,1.00573029]
[1743929181164,3.91044,1790.1,1789.7,4.46125]
[1743929181455,6.50144741,1790.2,1789.9,0.55]
[1743929181621,3.91028,1790.2,1789.9,0.55]
[1743929181827,3.91028,1790.2,1790.0,0.45336728]
[1743929182757,3.90979,1790.4,1790.1,0.7814]
[1743929183052,3.90979,1790.4,1790.2,0.45337271]
[1743929183466,3.90979,1790.4,1790.1,0.7814]
[1743929183656,3.90979,1790.4,1790.2,0.55]
[1743929183835,3.90973,1790.5,1790.2,1.00313721]
[1743929184362,8.22386612,1790.6,1790.2,1.00313721]
[1743929184563,8.22386612,1790.6,1790.2,4.91328721]
[1743929184862,8.22386612,1790.6,1790.3,0.49132872]
[1743929185227,8.22386612,1790.6,1790.4,0.45247954]
[1743929185563,8.22386612,1790.6,1790.3,0.49132872]
[1743929185762,8.22346612,1790.8,1790.4,1.83377954]
[1743929185926,3.90891,1790.8,1790.4,1.88962893]
[1743929186323,3.90891,1790.8,1790.4,5.79924893]
[1743929186539,3.90891,1790.8,1790.5,0.57992489]
[1743929186735,7.81794,1790.8,1790.6,1.00076218]
[1743929186952,3.90908,1790.7,1790.6,1.00076218]
[1743929187155,3.90887,1790.8,1790.6,1.00076218]
[1743929188555,3.90908,1790.7,1790.6,1.00076218]
[1743929188760,7.81791,1790.8,1790.6,1.00076218]
[1743929189364,3.90887,1790.8,1790.6,1.00076218]
[1743929189552,7.81794,1790.8,1790.6,1.00076218]
[1743929190275,7.81794,1790.8,1790.6,0.45076218]
[1743929190276,3.90886,1790.8,1790.6,0.45076218]
[1743929190483,8.22341612,1790.8,1790.6,0.45076218]
[1743929191435,3.95886,1790.9,1790.6,1.00076218]
[1743929192290,3.95886,1790.9,1790.7,0.55]
[1743929192688,3.95886,1790.9,1790.8,0.44986946]
[1743929193953,8.68715508,1790.9,1790.8,0.44986946]
[1743929194157,3.90987,1790.4,1790.0,3.91059]
[1743929194360,12.13432612,1790.4,1790.1,4.37608795]
[1743929194557,3.90997,1790.3,1790.1,0.37608795]
[1743929195292,4.31455612,1790.2,1790.1,0.37608795]
[1743929195475,8.22472612,1790.2,1790.1,0.37608795]
[1743929195683,3.90997,1790.3,1790.0,0.60585933]
[1743929195879,12.13411612,1790.4,1790.1,0.34170426]
[1743929196194,8.64419863,1790.4,1790.1,0.34170426]
[1743929196361,3.90997,1790.3,1790.1,0.34170426]
[1743929196760,3.90997,1790.3,1790.0,0.55]
[1743929196987,3.90997,1790.3,1790.1,0.34170426]
[1743929197590,12.55409863,1790.4,1790.1,0.34170426]
[1743929197959,8.64419863,1790.4,1790.1,0.34170426]
[1743929198697,12.55411863,1790.4,1790.1,0.34170426]
[1743929198999,8.22429612,1790.4,1790.2,0.55]
[1743929199401,8.22429612,1790.4,1790.3,0.34104656]
[1743929200391,12.13421612,1790.4,1790.3,0.34104656]
[1743929200596,12.13421612,1790.4,1790.1,0.55]
[1743929200891,3.90995,1790.3,1790.2,0.34137539]
[1743929201267,3.90995,1790.3,1790.1,0.55]
[1743929201471,3.90995,1790.3,1790.2,0.34137539]
[1743929201768,3.90995,1790.3,1790.1,0.55]
[1743929201977,3.90995,1790.3,1790.2,0.34137539]
[1743929202155,3.90995,1790.3,1790.1,0.55]
[1743929202360,3.90995,1790.3,1790.2,0.34137539]
[1743929202602,3.90995,1790.3,1790.1,0.55]
[1743929202771,3.90995,1790.3,1790.2,0.34137539]
[1743929203086,3.90995,1790.3,1790.1,0.55]
[1743929203293,8.63823797,1790.4,1790.2,0.34137539]
[1743929203659,8.63823797,1790.4,1790.1,0.55]
[1743929203855,8.63823797,1790.4,1790.3,0.34104656]
[1743929204060,8.63823797,1790.4,1790.2,0.34137539]
[1743929204291,8.63823797,1790.4,1790.3,0.34104656]
[1743929204592,4.32368185,1790.4,1790.1,0.55]
[1743929204771,7.81923,1790.5,1790.2,1.09327539]
[1743929205955,3.90979,1790.4,1790.2,1.09327539]
[1743929206195,8.22434612,1790.4,1790.2,0.34137539]
[1743929206491,8.22434612,1790.4,1790.1,0.55]
[1743929206694,3.90995,1790.3,1790.1,0.55]
[1743929206905,8.22434612,1790.4,1790.1,0.60585642]
[1743929207061,8.22434612,1790.4,1790.1,1.13269106]
[1743929207268,3.90979,1790.4,1790.1,1.13269106]
[1743929207488,3.90979,1790.4,1790.1,1.07683464]
[1743929208467,7.8192,1790.5,1790.2,0.7519]
[1743929209223,3.90976,1790.4,1790.1,1.07683464]
[1743929209508,3.90997,1790.3,1790.1,0.55]
[1743929210003,3.90976,1790.4,1790.2,0.8285]
[1743929210295,3.90976,1790.4,1790.1,1.3785]
[1743929210895,3.90997,1790.3,1790.1,1.3785]
[1743929211262,3.90976,1790.4,1790.1,0.55]
[1743929211686,3.90996,1790.3,1790.1,0.55]
[1743929213262,3.91021,1790.2,1789.9,0.7638]
[1743929213499,3.91021,1790.2,1789.9,1.231267]
[1743929213691,3.91021,1790.2,1789.9,0.7638]
[1743929213890,4.66271,1790.2,1789.9,0.7638]
[1743929214072,3.91048,1790.1,1789.7,10.83506]
[1743929214474,3.91048,1790.1,1789.8,0.55]
[1743929214694,3.91021,1790.2,1789.8,4.51687436]
[1743929214895,8.22452612,1790.3,1790.0,0.55]
[1743929215068,3.90997,1790.3,1790.0,0.55]
[1743929215902,3.90976,1790.4,1790.0,4.46061]
[1743929218803,3.90976,1790.4,1790.1,0.3426728]
[1743929220414,7.81922,1790.5,1790.2,0.7638]
[1743929220602,3.90953,1790.5,1790.3,0.34201502]
[1743929221128,3.90975,1790.4,1790.3,0.34201502]
[1743929222598,3.90997,1790.3,1790.0,1.3138]
[1743929222783,3.90997,1790.3,1790.1,0.3426658]
[1743929222984,8.22435612,1790.4,1790.1,0.3426658]
[1743929224112,3.90954,1790.5,1790.1,4.2530558]
[1743929224313,3.90954,1790.5,1790.2,0.55]
[1743929224517,7.81921,1790.5,1790.2,1.3422]
[1743929224677,3.90974,1790.4,1790.3,0.34200802]
[1743929227691,8.22429612,1790.4,1790.3,0.34200802]
[1743929229611,3.91005,1790.3,1790.0,25.9182]
[1743929229789,3.91005,1790.3,1790.1,0.8926658]
[1743929230317,4.67815,1790.3,1790.1,0.8926658]
[1743929230816,8.22429612,1790.4,1790.1,1.6936658]
[1743929231815,3.91008,1790.3,1790.1,1.6936658]
[1743929231981,3.91008,1790.3,1790.1,0.8926658]
[1743929234741,3.91008,1790.3,1790.2,5.289]
[1743929235042,3.91008,1790.3,1790.2,5.63137864]
[1743929237143,8.22429612,1790.4,1790.2,5.63137864]
[1743929237941,3.90995,1790.3,1790.2,5.63137864]
[1743929239142,8.22430612,1790.4,1790.2,5.63137864]
[1743929240069,4.67764,1790.5,1790.2,5.63137864]
[1743929240201,4.32533229,1790.6,1790.3,0.60585211]
[1743929240403,3.90952,1790.5,1790.4,0.34161445]
[1743929240740,3.90952,1790.5,1790.2,5.289]
[1743929240741,3.90983,1790.4,1790.2,5.289]
[1743929241152,7.81974,1790.4,1790.2,5.289]
[1743929241506,3.90995,1790.3,1790.2,5.289]
[1743929241709,3.91018,1790.2,1790.0,25.126]
[1743929241919,3.91018,1790.2,1790.1,5.289]
[1743929243462,3.91039,1790.1,1790.0,25.126]
[1743929243759,4.33110085,1790.3,1790.0,35.1266]
[1743929244256,3.90975,1790.4,1790.1,0.55]
[1743929244437,6.90958,1790.5,1790.1,4.46037]
[1743929244646,3.90958,1790.5,1790.1,4.46037]
[1743929245118,4.31839977,1790.5,1790.1,4.46037]
[1743929245439,3.90974,1790.4,1790.1,4.46037]
[1743929246837,4.31839977,1790.5,1790.1,8.37064]
[1743929247048,4.31839977,1790.5,1790.2,0.8309]
[1743929248106,8.22811977,1790.5,1790.2,0.8309]
[1743929248547,4.31839977,1790.5,1790.2,0.8309]
[1743929248844,4.31839977,1790.5,1790.3,0.34102655]
[1743929249043,4.31839977,1790.5,1790.4,5.288]
[1743929249240,4.31839977,1790.5,1790.4,5.62869772]
[1743929252926,13.27302687,1790.5,1790.4,0.34069772]
[1743929253244,6.90974,1790.4,1790.3,5.288]
[1743929253410,11.22429612,1790.4,1790.3,5.62837946]
[1743929255362,12.04159612,1790.4,1790.3,5.62837946]
[1743929255531,13.75987281,1790.4,1790.3,5.62837946]
[1743929256075,13.75987281,1790.4,1790.3,0.34037946]
[1743929264656,3.91038,1790.2,1789.9,0.8236]
[1743929264989,3.91038,1790.2,1790.0,0.3127038]
[1743929265352,3.90997,1790.3,1790.0,0.3127038]
[1743929265566,3.90997,1790.3,1790.1,0.8236]
[1743929265976,6.90997,1790.3,1790.2,0.31204595]
[1743929266447,6.90997,1790.3,1790.1,0.8236]
[1743929266785,3.90975,1790.4,1790.2,0.31204595]
[1743929267286,3.90975,1790.4,1790.3,0.31168317]
[1743929267486,3.90975,1790.4,1790.1,0.8236]
[1743929267660,6.49802313,1790.4,1790.1,1.297009]
[1743929267844,6.49802313,1790.4,1790.2,0.31201205]
[1743929268043,6.49802313,1790.4,1790.1,1.297009]
[1743929268287,6.49802313,1790.4,1790.2,0.31201205]
[1743929268448,6.49802313,1790.4,1790.1,1.297009]
[1743929268649,6.49802313,1790.4,1790.2,0.31201205]
[1743929268862,6.49802313,1790.4,1790.1,1.297009]
[1743929269294,6.49802313,1790.4,1790.2,0.31201205]
[1743929269689,3.90975,1790.4,1790.1,1.297009]
[1743929269889,3.90975,1790.4,1790.3,0.31168317]
[1743929270099,3.90975,1790.4,1790.1,1.297009]
[1743929270300,3.90975,1790.4,1790.3,0.31182519]
[1743929270801,3.90975,1790.4,1790.1,1.297009]
[1743929270958,3.90975,1790.4,1790.3,0.31182519]
[1743929271158,3.90975,1790.4,1790.1,1.297009]
[1743929271357,3.90975,1790.4,1790.3,0.31182519]
[1743929271559,3.90975,1790.4,1790.1,1.297009]
[1743929271801,3.90975,1790.4,1790.3,0.31182519]
[1743929272297,3.90975,1790.4,1790.3,0.31171669]
[1743929272480,3.90975,1790.4,1790.1,1.297009]
[1743929272654,3.90975,1790.4,1790.3,0.31171669]
[1743929272859,3.90975,1790.4,1790.1,1.297009]
[1743929273093,3.90975,1790.4,1790.2,0.31204557]
[1743929273290,3.90975,1790.4,1790.3,0.7882]
[1743929273457,3.90975,1790.4,1790.3,1.09991669]
[1743929274292,8.63227373,1790.5,1790.3,1.09991669]
[1743929279360,12.54195373,1790.5,1790.3,1.09991669]
[1743929279692,8.63227373,1790.5,1790.3,1.09991669]
[1743929281693,4.31835977,1790.5,1790.3,1.09991669]
[1743929282062,9.43707373,1790.5,1790.3,0.31171669]
[1743929282263,9.5759811,1790.5,1790.2,0.55]
[1743929282486,8.63227373,1790.5,1790.3,0.31171995]
[1743929283667,3.90935,1790.6,1790.3,1.09741995]
[1743929284063,8.22302396,1790.7,1790.4,0.55]
[1743929284293,8.22302396,1790.7,1790.5,0.31106229]
[1743929284658,12.13226396,1790.7,1790.5,0.31106229]
[1743929285275,8.22302396,1790.7,1790.5,0.31106229]
[1743929285476,12.13226396,1790.7,1790.5,0.31106229]
[1743929285964,3.9093,1790.6,1790.5,0.31106229]
[1743929289871,8.16483523,1790.6,1790.5,0.31106229]
[1743929290083,3.90974,1790.4,1790.3,25.123]
[1743929290478,3.90974,1790.4,1790.3,25.43471995]
[1743929291687,6.49810652,1790.4,1790.3,25.43471995]
[1743929293819,7.28410652,1790.4,1790.3,25.43471995]
[1743929293987,13.99183669,1790.4,1790.3,25.43471995]
[1743929294189,11.40347017,1790.4,1790.3,25.43471995]
[1743929297024,11.40347017,1790.4,1790.3,0.31171995]
[1743929297428,11.40347017,1790.4,1789.8,0.756]
[1743929297429,3.91039,1790.2,1789.8,0.756]
[1743929297721,6.49875652,1790.2,1789.8,0.756]
[1743929297900,6.49875652,1790.2,1789.9,0.55]
[1743929298105,6.90984,1790.4,1790.0,4.66658]
[1743929298506,10.81975,1790.4,1790.0,4.66658]
[1743929298712,3.90996,1790.3,1790.0,0.756]
[1743929298913,3.90996,1790.3,1790.0,1.222676]
[1743929299498,7.82009,1790.3,1790.0,1.222676]
[1743929299697,3.91027,1790.2,1790.0,0.756]
[1743929299992,3.91027,1790.2,1789.8,5.21687]
[1743929300823,3.91027,1790.2,1789.8,8.42763465]
[1743929301028,3.91027,1790.2,1789.9,0.756]
[1743929301227,3.90997,1790.3,1789.9,4.66674]
[1743929301525,3.90997,1790.3,1790.0,0.756]
[1743929303030,7.82008,1790.3,1790.0,0.756]
[1743929303730,7.82008,1790.3,1790.1,5.286]
[1743929305229,3.91017,1790.2,1790.1,5.286]
[1743929305639,3.90997,1790.3,1790.1,5.286]